fUSD/lending_fUSD_20240317
["ID","MTS","AMOUNT","RATE_DAILY","PERIOD"]
[319335928,1710670242017,-274.57,0.00018344,2]
[319335929,1710670242027,-166.66008376,0.00018349,2]
[319335930,1710670242038,-215.5079736,0.00018351,2]
[319335931,1710670242049,-151.16603037,0.00018352,2]
[319335932,1710670242059,-1023.45327489,0.00018376,2]
[319335933,1710670242070,-1023.45327489,0.00018387,2]
[319335934,1710670242081,-358.39042504,0.000184,2]
[319335935,1710670242091,-368.65636636,0.000184,2]
[319335936,1710670242102,-520.48,0.00018411,2]
[319335937,1710670242112,-167.0,0.00018444,2]
[319335938,1710670242122,-162.87031633,0.00018455,2]
[319335939,1710670242132,-154.11102108,0.0001847,2]
[319335940,1710670242142,-1500.0,0.000185,2]
[319335941,1710670242151,-368.65636636,0.00018515,2]
[319335942,1710670242161,-500.0,0.00018518,2]
[319335943,1710670242172,-155.0817669,0.00018546,2]
[319335944,1710670242182,-189.64750271,0.00018551,2]
[319335945,1710670242191,-163.86829635,0.00018554,2]
[319335946,1710670242200,-163.86829635,0.00018579,2]
[319335947,1710670242209,-1023.45327489,0.00018598,2]
[319335948,1710670242219,-163.86829635,0.00018611,2]
[319335949,1710670242228,-251.57207748,0.00018618,2]
[319335950,1710670242238,-500.0,0.0001863,2]
[319335951,1710670242248,-156.51853803,0.00018633,2]
[319335952,1710670242258,-165.56873329,0.00018649,2]
[319335953,1710670242268,-358.39042504,0.0001865,2]
[319335954,1710670242279,-163.68,0.00018681,10]
[319335955,1710670242288,-215.5079736,0.00018681,2]
[319335956,1710670242298,-155.0817669,0.00018699,2]
[319335957,1710670242307,-3374.0,0.000187,5]
[319335958,1710670242316,-189.64750271,0.00018715,2]
[319335959,1710670242325,-1363.80084106,0.00018732,2]
[319335960,1710670242336,-162.87031633,0.00018757,2]
[319335961,1710670242345,-166.66666666,0.00018771,2]
[319335962,1710670242355,-211.0,0.0001878,2]
[319335963,1710670242364,-500.0,0.00018792,2]
[319335964,1710670242373,-191.92927743,0.00018797,2]
[319335965,1710670242383,-162.87031633,0.00018809,2]
[319335966,1710670242392,-163.86829635,0.00018832,2]
[319335967,1710670242402,-215.5079736,0.00018843,2]
[319335968,1710670242411,-1363.80084106,0.00018856,2]
[319335969,1710670242420,-666.666666,0.00018877,2]
[319335970,1710670242429,-666.666666,0.00018877,2]
[319335971,1710670242438,-666.666666,0.00018877,2]
[319335973,1710670242447,-666.666666,0.00018877,2]
[319335975,1710670242456,-666.666666,0.00018877,2]
[319335977,1710670242465,-666.666666,0.00018877,2]
[319335979,1710670242476,-666.666666,0.00018877,2]
[319335980,1710670242485,-666.666666,0.00018877,2]
[319335982,1710670242494,-666.666666,0.00018877,2]
[319335984,1710670242503,-666.666666,0.00018877,2]
[319335986,1710670242513,-642.30091799,0.00018877,2]
[319335987,1710670242522,-666.666666,0.00018878,2]
[319335988,1710670242531,-666.666666,0.00018878,2]
[319335989,1710670242539,-666.666666,0.00018878,2]
[319335990,1710670242549,-666.666666,0.00018878,2]
[319335991,1710670242558,-666.666666,0.00018878,2]
[319335992,1710670242567,-666.666666,0.00018878,2]
[319335993,1710670242576,-666.666666,0.00018878,2]
[319335995,1710670242587,-666.666666,0.00018878,2]
[319335998,1710670242596,-500.0,0.00018878,2]
[319336000,1710670242605,-500.0,0.00018878,2]
[319336002,1710670242614,-500.0,0.00018878,2]
[319336004,1710670242623,-500.0,0.00018878,2]
[319336006,1710670242632,-551.23,0.00018878,2]
[319336008,1710670242641,-3148.89,0.00018878,2]
[319336009,1710670242651,-3904.45,0.00018878,2]
[319336011,1710670242660,-655.03776981,0.00018878,2]
[319336012,1710670242669,-500.0,0.00018879,2]
[319336013,1710670242679,-500.0,0.00018879,2]
[319336014,1710670242688,-500.0,0.00018879,2]
[319336015,1710670242697,-500.0,0.00018879,2]
[319336016,1710670242706,-500.0,0.00018879,2]
[319336017,1710670242715,-500.0,0.00018879,2]
[319336018,1710670242724,-500.0,0.00018879,2]
[319336019,1710670242734,-500.0,0.00018879,2]
[319336020,1710670242743,-500.0,0.00018879,2]
[319336021,1710670242752,-524.22190995,0.00018879,2]
[319336022,1710670242761,-500.0,0.00018879,2]
[319336023,1710670242769,-500.0,0.00018879,2]
[319336024,1710670242778,-500.0,0.00018879,2]
[319336025,1710670242788,-500.0,0.00018879,2]
[319336026,1710670242797,-553.89719854,0.00018879,2]
[319336027,1710670242806,-500.0,0.00018879,2]
[319336028,1710670242816,-500.0,0.00018879,2]
[319336029,1710670242825,-500.0,0.00018879,2]
[319336030,1710670242836,-500.0,0.00018879,2]
[319336031,1710670242846,-500.0,0.00018879,2]
[319336032,1710670242856,-500.0,0.00018879,2]
[319336033,1710670242864,-507.11440456,0.00018879,2]
[319336034,1710670242873,-500.0,0.00018879,2]
[319336035,1710670242883,-500.0,0.00018879,2]
[319336036,1710670242891,-500.0,0.00018879,2]
[319336037,1710670242900,-500.0,0.00018879,2]
[319336038,1710670242910,-492.48229064,0.00018879,2]
[319336039,1710670242919,-500.0,0.00018879,2]
[319336040,1710670242928,-500.0,0.00018879,2]
[319336041,1710670242938,-196.91224709,0.00018879,2]
[319336042,1710670242947,-1360.82,0.00018879,2]
[319336043,1710670242956,-1360.82,0.00018879,2]
[319336044,1710670242965,-1360.82,0.00018879,2]
[319336045,1710670242974,-500.0,0.00018879,2]
[319336046,1710670242983,-500.0,0.00018879,2]
[319336047,1710670242992,-500.0,0.00018879,2]
[319336048,1710670243001,-500.0,0.00018879,2]
[319336049,1710670243010,-500.0,0.00018879,2]
[319336050,1710670243019,-500.0,0.00018879,2]
[319336051,1710670243028,-500.0,0.00018879,2]
[319336052,1710670243037,-500.0,0.00018879,2]
[319336053,1710670243047,-500.0,0.00018879,2]
[319336055,1710670243056,-500.0,0.00018879,2]
[319336057,1710670243064,-500.0,0.00018879,2]
[319336059,1710670243074,-556.26,0.00018879,2]
[319336060,1710670243084,-556.26,0.00018879,2]
[319336061,1710670243093,-556.26,0.00018879,2]
[319336062,1710670243103,-3148.89,0.00018879,2]
[319336063,1710670243112,-3148.89,0.00018879,2]
[319336064,1710670243121,-3904.45,0.00018879,2]
[319336065,1710670243130,-3904.45,0.00018879,2]
[319336066,1710670243140,-867.76,0.00018879,2]
[319336067,1710670243151,-867.76,0.00018879,2]
[319336068,1710670243162,-867.76,0.00018879,2]
[319336069,1710670243172,-587.55,0.00018879,2]
[319336070,1710670243183,-587.55,0.00018879,2]
[319336071,1710670243192,-587.55,0.00018879,2]
[319336072,1710670243201,-500.0,0.00018879,2]
[319336073,1710670243210,-500.0,0.00018879,2]
[319336074,1710670243221,-624.74639057,0.00018879,2]
[319336075,1710670243231,-516.5,0.00018879,2]
[319336076,1710670243241,-82119.02959826,0.0001888,2]
[319336077,1710670243262,-5115.537408,0.0001888,2]
[319336078,1710670243276,-32236.89581426,0.0001888,2]
[319336079,1710670243290,-279.39887565,0.0001888,2]
[319336080,1710670243300,-441.4387274,0.0001888,2]
[319336081,1710670243315,-24896.60835611,0.0001888,2]
[319336082,1710670243350,-348.89593378,0.00015233,2]
[319336083,1710670243362,-2064.45115868,0.00015233,2]
[319336084,1710670243371,-4695.30184132,0.0001888,2]
[319336085,1710670243382,-2013.21,0.0001888,2]
[319336086,1710670243393,-1706.56898708,0.0001888,2]
[319336087,1710670243434,-572.35220453,0.0001888,2]
[319336088,1710670243518,-298.2,0.00016221,2]
[319336089,1710670243527,-4684.34477441,0.00018306,2]
[319336090,1710670243536,-1402.3204705,0.0001888,2]
[319336091,1710670243548,-693.79312,0.0001888,2]
[319336092,1710670243560,-2308.12598581,0.0001888,2]
[319336093,1710670243571,-356.99633322,0.0001888,2]
[319336094,1710670243584,-399.31545818,0.0001888,2]
[319336095,1710670243595,-447.40022391,0.0001888,2]
[319336096,1710670243606,-326.1144439,0.0001888,2]
[319336097,1710670243618,-2239.96109725,0.0001888,2]
[319336098,1710670243629,-439.65423676,0.0001888,2]
[319336099,1710670243707,-2847.59268996,0.0001888,2]
[319336100,1710670243722,-392.29490377,0.0001888,2]
[319336101,1710670243734,-500.0,0.0001888,2]
[319336102,1710670243746,-5484.38500086,0.0001888,2]
[319336103,1710670243757,-19352.80620538,0.0001888,2]
[319336104,1710670243768,-3401.56,0.0001888,2]
[319336105,1710670243780,-1041.4084361,0.0001888,2]
[319336106,1710670243792,-278.02097649,0.0001888,2]
[319336107,1710670243813,-2413.34709238,0.00015556,2]
[319336108,1710670243823,-674.86719189,0.0001888,2]
[319336109,1710670243836,-1426.41789528,0.0001888,2]
[319336110,1710670243853,-1639.93360106,0.0001888,2]
[319336111,1710670243865,-1535.9000014,0.0001888,2]
[319336112,1710670243877,-442798.41974254,0.0001888,2]
[319336113,1710670243886,-668.02234968,0.00018899,2]
[319336114,1710670243895,-231.92284633,0.00018899,2]
[319336115,1710670243904,-668.02234966,0.000189,2]
[319336116,1710670243914,-231.92284631,0.000189,2]
[319336117,1710670243923,-220.0,0.000189,2]
[319336118,1710670243933,-940.0,0.000189,2]
[319336119,1710670243942,-668.02234966,0.000189,2]
[319336120,1710670243951,-231.92284631,0.000189,2]
[319336121,1710670243960,-358.39042504,0.000189,2]
[319336122,1710670243969,-569.51721837,0.00018935,2]
[319336123,1710670243978,-264.04524603,0.00018936,2]
[319336124,1710670243987,-368.65636636,0.00018936,2]
[319336125,1710670243996,-1363.80084106,0.00018939,2]
[319336126,1710670244006,-3000.0,0.00018969,2]
[319336127,1710670244017,-155.0,0.00018982,2]
[319336128,1710670244026,-3604.13811346,0.00018983,2]
[319336129,1710670244037,-39335.37198229,0.00018984,3]
[319336130,1710670244048,-1024.89217,0.0001899,2]
[319336131,1710670244058,-2907.3645003,0.00018991,2]
[319336132,1710670244067,-151.16603037,0.00018995,2]
[319336133,1710670244076,-500.0,0.00018996,2]
[319336134,1710670244088,-500.0,0.00018996,2]
[319336135,1710670244097,-3148.89,0.00018996,2]
[319336136,1710670244106,-3904.45,0.00018996,2]
[319336137,1710670244115,-500.0,0.00018997,2]
[319336138,1710670244125,-500.0,0.00018997,2]
[319336139,1710670244135,-500.0,0.00018997,2]
[319336140,1710670244144,-500.0,0.00018997,2]
[319336141,1710670244154,-500.0,0.00018997,2]
[319336142,1710670244163,-500.0,0.00018997,2]
[319336143,1710670244172,-500.0,0.00018997,2]
[319336144,1710670244182,-500.0,0.00018997,2]
[319336145,1710670244191,-500.0,0.00018997,2]
[319336146,1710670244200,-1360.82,0.00018997,2]
[319336147,1710670244209,-500.0,0.00018997,2]
[319336148,1710670244218,-500.0,0.00018997,2]
[319336149,1710670244226,-500.0,0.00018997,2]
[319336150,1710670244236,-500.0,0.00018997,2]
[319336151,1710670244245,-556.26,0.00018997,2]
[319336152,1710670244254,-3148.89,0.00018997,2]
[319336153,1710670244263,-3904.45,0.00018997,2]
[319336154,1710670244272,-867.76,0.00018997,2]
[319336155,1710670244281,-587.55,0.00018997,2]
[319336156,1710670244290,-660.49304242,0.00018998,2]
[319336157,1710670244299,-47577.08760045,0.00018998,2]
[319336158,1710670244307,-166.0502098,0.00018998,2]
[319336159,1710670244316,-160.22098966,0.00018998,2]
[319336160,1710670244325,-5504.19849091,0.00018998,2]
[319336161,1710670244336,-200.74122027,0.00018998,2]
[319336162,1710670244345,-214.29692718,0.00018998,2]
[319336163,1710670244354,-409.6581285,0.00018998,2]
[319336164,1710670244364,-12735.53788776,0.00018998,2]
[319336165,1710670244373,-205.1716943,0.00018998,2]
[319336166,1710670244382,-373.81422416,0.00018998,2]
[319336167,1710670244391,-231.33804712,0.00018998,2]
[319336168,1710670244402,-6222.33134935,0.00018998,2]
[319336169,1710670244412,-193.42559001,0.00018998,2]
[319336170,1710670244422,-634.33960766,0.00018998,2]
[319336171,1710670244431,-444.7076028,0.00018998,2]
[319336172,1710670244441,-155.0,0.00018998,2]
[319336173,1710670244450,-155.08761359,0.00018998,2]
[319336174,1710670244461,-204.4040776,0.00018998,2]
[319336175,1710670244471,-2972.58721165,0.00018998,2]
[319336176,1710670244481,-179.6366854,0.00018998,2]
[319336177,1710670244490,-3967.39244542,0.00018998,2]
[319336178,1710670244499,-222.84960389,0.00018998,2]
[319336179,1710670244508,-12468.99206243,0.00018998,2]
[319336180,1710670244518,-10426.49285854,0.00018998,2]
[319336181,1710670244528,-116897.76949707,0.00018998,2]
[319336182,1710670244536,-1234.11333327,0.00018998,2]
[319336183,1710670244546,-19361.4999371,0.00018998,2]
[319336184,1710670244555,-522.26559909,0.00018998,2]
[319336185,1710670244565,-500.0,0.00018998,2]
[319336186,1710670244574,-500.0,0.00018998,2]
[319336187,1710670244584,-155.0,0.00018998,2]
[319336188,1710670244594,-500.0,0.00018998,2]
[319336189,1710670244603,-500.0,0.00018998,2]
[319336190,1710670244612,-500.0,0.00018998,2]
[319336191,1710670244621,-500.0,0.00018998,2]
[319336192,1710670244631,-500.0,0.00018998,2]
[319336193,1710670244642,-500.0,0.00018998,2]
[319336194,1710670244652,-500.0,0.00018998,2]
[319336195,1710670244662,-500.0,0.00018998,2]
[319336196,1710670244671,-500.0,0.00018998,2]
[319336197,1710670244680,-500.0,0.00018998,2]
[319336198,1710670244690,-500.0,0.00018998,2]
[319336199,1710670244700,-500.0,0.00018998,2]
[319336200,1710670244709,-500.0,0.00018998,2]
[319336201,1710670244719,-500.0,0.00018998,2]
[319336202,1710670244730,-500.0,0.00018998,2]
[319336203,1710670244740,-500.0,0.00018998,2]
[319336204,1710670244749,-199.06324036,0.00018998,2]
[319336205,1710670244758,-1360.82,0.00018998,2]
[319336206,1710670244767,-1360.82,0.00018998,2]
[319336207,1710670244776,-500.0,0.00018998,2]
[319336208,1710670244785,-500.0,0.00018998,2]
[319336209,1710670244795,-500.0,0.00018998,2]
[319336210,1710670244804,-500.0,0.00018998,2]
[319336211,1710670244813,-500.0,0.00018998,2]
[319336212,1710670244822,-500.0,0.00018998,2]
[319336213,1710670244831,-556.26,0.00018998,2]
[319336214,1710670244842,-556.26,0.00018998,2]
[319336215,1710670244852,-4276.36265235,0.00018998,2]
[319336216,1710670244862,-509.0469476,0.00018998,2]
[319336217,1710670244871,-3148.89,0.00018998,2]
[319336218,1710670244880,-3904.45,0.00018998,2]
[319336219,1710670244890,-867.76,0.00018998,2]
[319336220,1710670244898,-867.76,0.00018998,2]
[319336221,1710670244907,-587.55,0.00018998,2]
[319336222,1710670244916,-587.55,0.00018998,2]
[319336223,1710670244925,-273.38120769,0.00018998,2]
[319336224,1710670244935,-204.58179092,0.00018999,2]
[319336225,1710670244944,-2004.44325118,0.00018999,2]
[319336226,1710670244955,-220000.0,0.00018999,2]
[319336227,1710670244966,-500.0,0.00018999,2]
[319336228,1710670244975,-251.46043,0.00018999,2]
[319336229,1710670244984,-500.0,0.00018999,2]
[319336230,1710670244993,-151.0,0.00018999,2]
[319336231,1710670245002,-500.0,0.00018999,2]
[319336232,1710670245011,-500.0,0.00018999,2]
[319336233,1710670245020,-500.0,0.00018999,2]
[319336234,1710670245029,-500.0,0.00018999,2]
[319336235,1710670245038,-500.0,0.00018999,2]
[319336236,1710670245047,-461.74,0.00018999,2]
[319336237,1710670245056,-500.0,0.00018999,2]
[319336238,1710670245064,-500.0,0.00018999,2]
[319336239,1710670245073,-500.0,0.00018999,2]
[319336240,1710670245083,-500.0,0.00018999,2]
[319336241,1710670245091,-500.0,0.00018999,2]
[319336242,1710670245100,-500.0,0.00018999,2]
[319336243,1710670245109,-500.0,0.00018999,2]
[319336244,1710670245118,-500.0,0.00018999,2]
[319336245,1710670245127,-500.0,0.00018999,2]
[319336246,1710670245136,-500.0,0.00018999,2]
[319336247,1710670245145,-500.0,0.00018999,2]
[319336248,1710670245154,-179.63,0.00018999,2]
[319336249,1710670245164,-500.0,0.00018999,2]
[319336250,1710670245173,-500.0,0.00018999,2]
[319336251,1710670245182,-500.0,0.00018999,2]
[319336252,1710670245191,-500.0,0.00018999,2]
[319336253,1710670245358,-500.0,0.00018999,2]
[319336254,1710670245367,-500.0,0.00018999,2]
[319336255,1710670245377,-500.0,0.00018999,2]
[319336256,1710670245386,-500.0,0.00018999,2]
[319336257,1710670245395,-500.0,0.00018999,2]
[319336258,1710670245404,-553.22,0.00018999,2]
[319336259,1710670245413,-500.0,0.00018999,2]
[319336260,1710670245423,-500.0,0.00018999,2]
[319336261,1710670245432,-500.0,0.00018999,2]
[319336263,1710670245443,-500.0,0.00018999,2]
[319336265,1710670245452,-500.0,0.00018999,2]
[319336266,1710670245462,-500.0,0.00018999,2]
[319336267,1710670245472,-500.0,0.00018999,2]
[319336268,1710670245482,-502.39791308,0.00018999,2]
[319336269,1710670245491,-151.0,0.00018999,2]
[319336270,1710670245500,-151.0,0.00018999,2]
[319336272,1710670245511,-151.0,0.00018999,2]
[319336273,1710670245520,-500.0,0.00018999,2]
[319336275,1710670245531,-500.0,0.00018999,2]
[319336277,1710670245540,-151.0,0.00018999,2]
[319336279,1710670245554,-151.0,0.00018999,2]
[319336280,1710670245563,-500.0,0.00018999,2]
[319336281,1710670245573,-500.0,0.00018999,2]
[319336282,1710670245582,-500.0,0.00018999,2]
[319336283,1710670245592,-500.0,0.00018999,2]
[319336284,1710670245601,-500.0,0.00018999,2]
[319336285,1710670245611,-500.0,0.00018999,2]
[319336286,1710670245621,-319.24,0.00018999,2]
[319336287,1710670245630,-155.442201,0.00018999,2]
[319336288,1710670245641,-151.0,0.00018999,2]
[319336289,1710670245650,-151.0,0.00018999,2]
[319336290,1710670245660,-151.0,0.00018999,2]
[319336291,1710670245669,-151.0,0.00018999,2]
[319336292,1710670245678,-151.0,0.00018999,2]
[319336293,1710670245687,-151.0,0.00018999,2]
[319336294,1710670245696,-151.0,0.00018999,2]
[319336295,1710670245706,-151.0,0.00018999,2]
[319336296,1710670245716,-151.0,0.00018999,2]
[319336297,1710670245725,-472.908464,0.00018999,2]
[319336298,1710670245734,-151.0,0.00018999,2]
[319336299,1710670245744,-472.908464,0.00018999,2]
[319336300,1710670245753,-151.0,0.00018999,2]
[319336301,1710670245763,-151.0,0.00018999,2]
[319336302,1710670245773,-1360.82,0.00018999,2]
[319336303,1710670245782,-1360.82,0.00018999,2]
[319336304,1710670245796,-1360.82,0.00018999,2]
[319336305,1710670245811,-151.552406,0.00018999,2]
[319336306,1710670245820,-1360.82,0.00018999,2]
[319336307,1710670245830,-1360.82,0.00018999,2]
[319336308,1710670245844,-1360.82,0.00018999,2]
[319336309,1710670245859,-1360.82,0.00018999,2]
[319336310,1710670245874,-1360.82,0.00018999,2]
[319336311,1710670245885,-199.84107829,0.00018999,2]
[319336312,1710670246066,-840.64392545,0.00018999,2]
[319336313,1710670246078,-320.33499626,0.00018999,2]
[319336314,1710670246091,-235.27630739,0.00018999,2]
[319336315,1710670246103,-1125.54369261,0.00018999,2]
[319336316,1710670246112,-1360.82,0.00018999,2]
[319336317,1710670246121,-1360.82,0.00018999,2]
[319336318,1710670246129,-1360.99,0.00018999,2]
[319336319,1710670246139,-500.0,0.00018999,2]
[319336320,1710670246148,-500.0,0.00018999,2]
[319336321,1710670246157,-388.9,0.00018999,2]
[319336322,1710670246167,-151.0,0.00018999,2]
[319336323,1710670246176,-219.152486,0.00018999,2]
[319336324,1710670246185,-151.0,0.00018999,2]
[319336325,1710670246195,-151.0,0.00018999,2]
[319336326,1710670246204,-151.0,0.00018999,2]
[319336327,1710670246214,-151.0,0.00018999,2]
[319336328,1710670246223,-151.0,0.00018999,2]
[319336329,1710670246232,-151.0,0.00018999,2]
[319336330,1710670246241,-151.0,0.00018999,2]
[319336331,1710670246250,-151.0,0.00018999,2]
[319336332,1710670246259,-151.027864,0.00018999,2]
[319336333,1710670246269,-421.2,0.00018999,2]
[319336334,1710670246278,-500.0,0.00018999,2]
[319336335,1710670246287,-500.0,0.00018999,2]
[319336336,1710670246297,-500.0,0.00018999,2]
[319336337,1710670246306,-500.0,0.00018999,2]
[319336338,1710670246315,-500.0,0.00018999,2]
[319336339,1710670246324,-500.0,0.00018999,2]
[319336340,1710670246335,-500.0,0.00018999,2]
[319336341,1710670246344,-500.0,0.00018999,2]
[319336342,1710670246353,-500.0,0.00018999,2]
[319336343,1710670246362,-385.19610416,0.00018999,2]
[319336344,1710670246371,-2125.412711,0.00018999,2]
[319336345,1710670246380,-2125.412711,0.00018999,2]
[319336346,1710670246389,-151.0,0.00018999,2]
[319336347,1710670246398,-151.0,0.00018999,2]
[319336348,1710670246407,-500.0,0.00018999,2]
[319336349,1710670246416,-466.4,0.00018999,2]
[319336350,1710670246425,-556.26,0.00018999,2]
[319336351,1710670246435,-556.26,0.00018999,2]
[319336352,1710670246443,-556.26,0.00018999,2]
[319336353,1710670246453,-556.26,0.00018999,2]
[319336354,1710670246463,-556.26,0.00018999,2]
[319336355,1710670246473,-556.26,0.00018999,2]
[319336356,1710670246483,-556.26,0.00018999,2]
[319336357,1710670246492,-556.26,0.00018999,2]
[319336358,1710670246502,-556.26,0.00018999,2]
[319336359,1710670246512,-556.26,0.00018999,2]
[319336360,1710670246520,-556.26,0.00018999,2]
[319336361,1710670246530,-556.26,0.00018999,2]
[319336362,1710670246538,-556.33917469,0.00018999,2]
[319336363,1710670246549,-151.0,0.00018999,2]
[319336364,1710670246558,-151.0,0.00018999,2]
[319336365,1710670246569,-3148.89,0.00018999,2]
[319336366,1710670246578,-3148.89,0.00018999,2]
[319336367,1710670246589,-151.0,0.00018999,2]
[319336368,1710670246598,-3148.89,0.00018999,2]
[319336369,1710670246607,-642.51419393,0.00018999,2]
[319336370,1710670246619,-306.8076279,0.00018999,2]
[319336371,1710670246631,-2199.56817817,0.00018999,2]
[319336372,1710670246641,-1316.50281263,0.00018999,2]
[319336373,1710670246652,-1258.262505,0.00018999,2]
[319336374,1710670246717,-500.0,0.00015399,2]
[319336375,1710670246726,-500.0,0.00015399,2]
[319336376,1710670246735,-500.0,0.00015399,2]
[319336377,1710670246744,-2429.113636,0.00018603,2]
[319336378,1710670246755,-2255.23113841,0.00018603,2]
[319336379,1710670246764,-3752.35933948,0.00018879,2]
[319336380,1710670246774,-1400.0,0.00018879,2]
[319336381,1710670246783,-170.61470371,0.00018999,2]
[319336382,1710670246823,-181.00786655,0.00015138,2]
[319336383,1710670246834,-500.0,0.00015399,2]
[319336384,1710670246843,-500.0,0.00017999,2]
[319336385,1710670246852,-500.0,0.00018879,2]
[319336386,1710670246862,-403.50997866,0.00018999,2]
[319336387,1710670246872,-89.02271868,0.00018999,2]
[319336388,1710670246889,-203.48,0.00018879,2]
[319336389,1710670246899,-3059.86728132,0.00018999,2]
[319336390,1710670246910,-3904.45,0.00018999,2]
[319336391,1710670246920,-3148.89,0.00018999,2]
[319336392,1710670246929,-3904.45,0.00018999,2]
[319336393,1710670246938,-3148.89,0.00018999,2]
[319336394,1710670246948,-3904.45,0.00018999,2]
[319336395,1710670246958,-3148.89,0.00018999,2]
[319336396,1710670246967,-3904.45,0.00018999,2]
[319336397,1710670246976,-3148.89,0.00018999,2]
[319336398,1710670246985,-3904.45,0.00018999,2]
[319336399,1710670246994,-3148.89,0.00018999,2]
[319336400,1710670247004,-3904.45,0.00018999,2]
[319336401,1710670247014,-3148.89,0.00018999,2]
[319336402,1710670247023,-3904.45,0.00018999,2]
[319336403,1710670247032,-3149.05,0.00018999,2]
[319336404,1710670247042,-3904.45,0.00018999,2]
[319336405,1710670247051,-3904.45,0.00018999,2]
[319336406,1710670247060,-3904.45,0.00018999,2]
[319336407,1710670247070,-3904.45,0.00018999,2]
[319336408,1710670247079,-3904.45,0.00018999,2]
[319336409,1710670247091,-3904.60820263,0.00018999,2]
[319336410,1710670247101,-867.76,0.00018999,2]
[319336411,1710670247110,-867.76,0.00018999,2]
[319336412,1710670247119,-867.76,0.00018999,2]
[319336413,1710670247129,-399.154345,0.00018999,2]
[319336414,1710670247138,-867.76,0.00018999,2]
[319336415,1710670247148,-867.76,0.00018999,2]
[319336416,1710670247158,-867.76,0.00018999,2]
[319336417,1710670247168,-867.76,0.00018999,2]
[319336418,1710670247177,-867.76,0.00018999,2]
[319336419,1710670247187,-151.0,0.00018999,2]
[319336420,1710670247197,-867.76,0.00018999,2]
[319336421,1710670247207,-867.76,0.00018999,2]
[319336422,1710670247217,-867.76,0.00018999,2]
[319336423,1710670247228,-867.76,0.00018999,2]
[319336425,1710670247238,-867.85875305,0.00018999,2]
[319336427,1710670247249,-399.154345,0.00018999,2]
[319336430,1710670247259,-151.0,0.00018999,2]
[319336431,1710670247269,-587.55,0.00018999,2]
[319336432,1710670247279,-587.55,0.00018999,2]
[319336433,1710670247289,-151.0,0.00018999,2]
[319336434,1710670247299,-587.55,0.00018999,2]
[319336435,1710670247309,-587.55,0.00018999,2]
[319336436,1710670247318,-587.55,0.00018999,2]
[319336437,1710670247328,-587.55,0.00018999,2]
[319336438,1710670247340,-587.55,0.00018999,2]
[319336439,1710670247350,-587.55,0.00018999,2]
[319336440,1710670247361,-587.55,0.00018999,2]
[319336441,1710670247371,-587.55,0.00018999,2]
[319336442,1710670247383,-587.55,0.00018999,2]
[319336443,1710670247394,-587.55,0.00018999,2]
[319336444,1710670247404,-151.0,0.00018999,2]
[319336445,1710670247413,-587.66995866,0.00018999,2]
[319336446,1710670247423,-151.0,0.00018999,2]
[319336447,1710670247433,-151.0,0.00018999,2]
[319336448,1710670247443,-151.0,0.00018999,2]
[319336449,1710670247453,-151.0,0.00018999,2]
[319336450,1710670247464,-324.13033802,0.00019,3]
[319336451,1710670247476,-1400.0,0.00019,2]
[319336452,1710670247488,-304757.48637822,0.00019,2]
[319336453,1710670247510,-535.92822012,0.00014,2]
[319336454,1710670247586,-485.01041117,0.00014,2]
[319336455,1710670247596,-2065.73958883,0.00019,2]
[319336456,1710670247607,-43669.01038123,0.00019,2]